Cogmind - Beta 11.1 @@@ ROGUE MODE // 2022.04.24 @ 19:57:47 Player: Demise Result: Destroyed by D-53 Grenadier with Mini Grenade Launcher Performance ------------- Evolutions (0) 0 Regions Visited (2) 400 Robots Destroyed (30) 150 Value Destroyed (579) 579 Prototype IDs (4) 80 Alien Tech Used (0) 0 Bonus (0) 0 TOTAL SCORE: 1209 Bonus ------- None Cogmind --------- Core Integrity 0/250 Matter 253/300 Energy 89/100 System Corruption 0% Temperature Cool (0) Movement Core (750) Ox14 Location -10/Mines Parts ------- > --- POWER (1) -------- (None) > --- PROPULSION (2) --- (None) > --- UTILITY (2) ------ High-capacity Storage Unit Core Shielding > --- WEAPON (2) ------- Assault Rifle > --- INVENTORY (20) --- Light Ion Engine Weight Redist. System Structural Scanner Improved Terrain Scanner Hacking Suite Hacking Suite EM Pulse Gun Assault Rifle Light Assault Rifle Light Assault Rifle Light Assault Rifle Light Assault Rifle Light Assault Rifle Rocket Launcher Maul Maul Mining Claw Peak State ------------ > --- POWER ------------ Light Ion Engine > --- PROPULSION ------- Light Treads Light Treads > --- UTILITY ---------- High-capacity Storage Unit Structural Scanner > --- WEAPON ----------- Improved Medium Laser Assault Rifle > --- INVENTORY -------- Light Ion Engine Light Treads Light Treads Weight Redist. System Improved Terrain Scanner Core Shielding Hacking Suite EM Pulse Gun Assault Rifle Assault Rifle Assault Rifle Light Assault Rifle Light Assault Rifle Grenade Launcher Mining Claw [Rating: 11] Favorites ----------- Power Light Ion Engine Engine Light Ion Engine Propulsion Light Treads Treads Light Treads Utility Structural Scanner Device Structural Scanner Storage High-capacity Storage Unit Protection Core Shielding Weapon Assault Rifle Energy Gun Small Laser Ballistic Gun Assault Rifle Launcher Grenade Launcher Build | -11 -10 -10 ------- Run | Scr Mat Min Slots Evolved . | . . . Power . | . . . Propulsion . | . . . Utility . | . . . Weapon . | . . . Parts Attached 24 | 8 11 5 Power 2 | 1 1 . Engine 2 | 1 1 . Core . | . . . Reactor . | . . . Propulsion 6 | 2 2 2 Treads 6 | 2 2 2 Leg . | . . . Wheel . | . . . Hover . | . . . Flight . | . . . Utility 5 | 2 2 1 Device 2 | 1 1 . Storage 2 | 1 1 . Processor . | . . . Hackware . | . . . Protection 1 | . . 1 Artifact . | . . . Weapon 11 | 3 6 2 Energy Gun 2 | 1 1 . Energy Cannon . | . . . Ballistic Gun 7 | 2 4 1 Ballistic Cannon . | . . . Launcher 2 | . 1 1 Special Weapon . | . . . Impact Weapon . | . . . Slashing Weapon . | . . . Piercing Weapon . | . . . Special Melee Weapon . | . . . Unidentified Prototypes 1 | . 1 . Parts Lost 7 | . . 7 Power 1 | . . 1 Propulsion 4 | . . 4 Utility . | . . . Weapon 2 | . . 2 Highest Loss Streak 7 | . . 7 To Critical Strikes . | . . . Average Slot Usage (%) 99 | . 99 96 Engine 13 | . 14 13 Treads 28 | . 28 28 Device 13 | . 14 11 Storage 14 | . 14 14 Ballistic Gun 27 | . 27 23 Naked Turns . | . . . Heaviest Build 49 | 11 48 49 Greatest Support 40 | 40 40 40 Greatest Overweight (x) 1 | . 1 1 Average Overweight (x) . | . . 1 Largest Inventory Capacity 20 | 8 20 20 Average Capacity 16 | 7 16 20 Most Carried 20 | 1 20 20 Average Carried 11 | . 11 19 Final Capacity 20 | 8 20 20 Final Carried 20 | 1 20 17 Class Distribution -------------------- 100% | Mutant Dominant Class ---------------- Mutant | -10/Materials Mutant | -10/Mines Resources | -11 -10 -10 ----------- Run | Scr Mat Min Matter Collected 872 | 306 552 14 Remotely . | . . . Salvage Created 954 | 106 848 . Parts 70 | 5 65 . Haulers Intercepted 2 | . 2 . Recyclers Shooed 2 | . 2 . Parts Field Recycled . | . . . Retrieved Matter . | . . . Parts Self-Destructed . | . . . Prevented . | . . . Kills | -11 -10 -10 ------- Run | Scr Mat Min Combat Hostiles Destroyed 18 | . 18 . Guns 15 | . 15 . AOE 3 | . 3 . Classes Destroyed 9 | 2 7 . Worker 1 | . 1 . Builder 2 | . 2 . Tunneler 1 | 1 . . Hauler 2 | . 2 . Recycler 2 | 1 1 . Operator 2 | . 2 . Watcher 2 | . 2 . Swarmer 6 | . 6 . Grunt 12 | . 12 . Best Kill Streak 5 | 2 5 . Combat Bots Only 3 | . 3 . Max Kills in Single Turn 4 | 1 4 . Gunslinging . | . . . Exploded 2 | . 2 . Melee . | . . . Uniques/NPCs Destroyed . | . . . Combat | -11 -10 -10 -------- Run | Scr Mat Min Damage Taken 1163 | . 474 689 Core 252 | . 96 156 Absorbed by Shields . | . . . Redirected to Shielding 28 | . . 28 Core Remaining (%) 100 | 100 . . Volleys Fired 91 | 14 72 5 Largest 2 | 2 2 2 Hottest 50 | 40 40 50 Shots Fired 179 | 28 142 9 Gun 174 | 28 140 6 Cannon . | . . . Launcher 5 | . 2 3 Special . | . . . Kinetic 174 | 28 140 6 Thermal . | . . . Explosive 5 | . 2 3 Electromagnetic . | . . . Robot Hit Streak 10 | 5 10 7 Robot Miss Streak 4 | 4 3 3 Penetration Max . | . . . Secondary Targets 1 | . 1 . Max Gunslinging Chain 1 | . 1 . Shots Hit Robots 106 | 13 91 2 Core Hits 60 | 5 46 9 Critical Kills 1 | . 1 . Critical Parts Destroyed . | . . . Critical Strikes 1 | . 1 . Destroy 1 | . 1 . Melee Attacks . | . . . Impact . | . . . Slashing . | . . . Piercing . | . . . Sneak Attacks . | . . . Combat Hostiles . | . . . Follow-up Attacks . | . . . Damage Inflicted 1526 | 117 1368 41 Guns 1294 | 117 1167 10 Cannons . | . . . Explosions 229 | . 201 28 Melee . | . . . Ramming 3 | . . 3 Kinetic 1294 | 117 1167 10 Thermal . | . . . Explosive 229 | . 201 28 Electromagnetic . | . . . Impact . | . . . Slashing . | . . . Piercing . | . . . Highest Corruption . | . . . Average Corruption . | . . . Corruption Purged . | . . . Corruption Blocked . | . . . Overload Shots . | . . . Overflow Damage . | . . . Projectiles . | . . . Explosions . | . . . Melee . | . . . Knockbacks . | . . . Impact . | . . . Kinetic . | . . . Secondary . | . . . Self-Inflicted Damage . | . . . Shots . | . . . Rammed 1 | . . 1 Targets Rammed 1 | . . 1 Kicked . | . . . Crushed . | . . . Highest Temperature 5 | . 5 . Average Temperature 2 | . 2 . Received Heat Transfer 234 | . 234 . Siege Activations . | . . . Robots Corrupted . | . . . Combat Hostiles . | . . . Parts Fried . | . . . Impact Corruptions . | . . . Robots Melted . | . . . Combat Hostiles . | . . . Parts Melted . | . . . Heat Transferred . | . . . Parts Sabotaged . | . . . Parts Stolen . | . . . Parts Stripped . | . . . Power Chain Reactions . | . . . Missiles Intercepted . | . . . Alert | -11 -10 -10 ------- Run | Scr Mat Min Peak Influence 305 | 10 305 59 Initial 37 | . 6 37 Average 143 | 2 159 35 Maximum Alert Level 1 | . 1 . Low Security (%) 66 | 100 62 100 Level 1 33 | . 37 . Level 2 . | . . . Level 3 . | . . . Level 4 . | . . . Level 5 . | . . . High Security . | . . . Max Security . | . . . Squads Dispatched 4 | . 4 . Investigation 2 | . 2 . Extermination . | . . . Reinforcement 2 | . 2 . Assault . | . . . Garrison . | . . . Intercept . | . . . Searches Triggered . | . . . Construction Impeded . | . . . Haulers Reinforced . | . . . Active Scanning Responses . | . . . Cargo Convoy Interrupts . | . . . Stealth | -11 -10 -10 --------- Run | Scr Mat Min Distress Signals 3 | . 2 1 Communications Jammed . | . . . Distress Signals . | . . . Times Spotted 59 | . 39 20 Peak Tracking Total 15 | . 4 15 Tactical Retreats 2 | . 2 . Traps | -11 -10 -10 ------- Run | Scr Mat Min Traps Triggered 1 | . 1 . Indirectly . | . . . Trap Hack Attempts . | . . . Triggered . | . . . Disarmed . | . . . Reprogrammed . | . . . Reused . | . . . Traps Extracted . | . . . Installed . | . . . Triggered . | . . . Machines | -11 -10 -10 ---------- Run | Scr Mat Min Machines Disabled . | . . . Max in Single Turn . | . . . Machines Sabotaged . | . . . Garrisons Compromised . | . . . Overloaded Fab Kills . | . . . Hacking | -11 -10 -10 --------- Run | Scr Mat Min Machines Accessed 8 | . 8 . Terminals 6 | . 6 . Fabricators . | . . . Repair Stations . | . . . Recycling Units 2 | . 2 . Scanalyzers . | . . . Garrison Access . | . . . Total Hacks 29 | . 29 . Successful 15 | . 15 . Failed 14 | . 14 . Catastrophic . | . . . Database Lockouts . | . . . Manual 15 | . 15 . Terminals 21 | . 21 . Fabricators . | . . . Repair Stations . | . . . Recycling Units 8 | . 8 . Scanalyzers . | . . . Garrison Access . | . . . Terminal Hacks 5 | . 5 . Prototype ID Bank 2 | . 2 . Branch Access Points 1 | . 1 . Terminal Index 1 | . 1 . Dispatch Records 1 | . 1 . Fabricator Hacks . | . . . Repair Station Hacks . | . . . Recycling Unit Hacks 2 | . 2 . Retrieve Components 2 | . 2 . Scanalyzer . | . . . Garrison Access Hacks . | . . . Unauthorized Hacks 8 | . 8 . Terminals 6 | . 6 . Assimilate 1 | . 1 . Botnet 4 | . 4 . Operators 1 | . 1 . Fabricators . | . . . Repair Stations . | . . . Recycling Units 2 | . 2 . Recyclers 1 | . 1 . Tunnel 1 | . 1 . Scanalyzers . | . . . Garrison Access . | . . . Data Cores Recovered . | . . . Used . | . . . Hacking Detections 8 | . 8 . Full Trace Events 2 | . 2 . Feedback Events . | . . . Feedback Blocked . | . . . Robot Schematics Acquired . | . . . Robots Built . | . . . Authchips . | . . . Time . | . . . Total Robot Build Rating . | . . . Part Schematics Acquired . | . . . Parts Built . | . . . Authchips . | . . . Time . | . . . Total Part Build Rating . | . . . Parts Repaired . | . . . Time . | . . . Parts Recycled . | . . . Recycled Matter . | . . . Retrieved Matter . | . . . Retrieved Components 9 | . 9 . Parts Scanalyzed . | . . . Part Schematics Acquired . | . . . Parts Damaged . | . . . Bothacking | -11 -10 -10 ------------ Run | Scr Mat Min Used RIF Installer . | . . . Robots Hacked . | . . . Non-combat . | . . . Combat . | . . . Robot Hacks Applied . | . . . Relay Couplers Released . | . . . Fabnet Peak Effective % . | . . . Robots Rewired . | . . . Allies Hacked . | . . . Hacks Repelled . | . . . Allies | -11 -10 -10 -------- Run | Scr Mat Min Total Allies 1 | . 1 . Largest Group 1 | . 1 1 Highest-Rated Group 10 | . 10 10 Highest-Rated Ally 10 | . 10 10 Total Orders . | . . . Ally Attacks . | . . . Total Damage . | . . . Kills . | . . . Allies Corrupted . | . . . Allies Melted . | . . . Intel | -11 -10 -10 ------- Run | Scr Mat Min Robot Analysis Total . | . . . Derelict Logs Recovered . | . . . Drone Launches . | . . . Drone Recoveries . | . . . Exploration | -11 -10 -10 ------------- Run | Scr Mat Min Turns Passed 2288 | 113 2029 146 Spaces Moved 906 | 43 812 51 Core 4 | 4 . . Treads 902 | 39 812 51 Legs . | . . . Wheels . | . . . Hover . | . . . Flight . | . . . Fastest Speed 50 | 50 160 240 Average Speed 212 | 149 214 240 Slowest Speed 240 | 160 240 240 Overloaded Moves . | . . . Propulsion Burnouts . | . . . Robots Hopped . | . . . Cave-ins Triggered . | . . . Exploration Rate (%) 42 | 5 97 24 Regions Visited 2 Branch Regions 1 Pre-discovered Areas 1 | . 1 . Known Exits Taken 1 | . 1 . Unknown Exits Taken 1 | 1 . . Scrap Searched . | . . . Spaces Dug 8 | . . 8 Terrain Destroyed 24 | . 9 15 Melee . | . . . Projectile . | . . . AOE 24 | . 9 15 Terrain Rammed . | . . . Walls Destroyed . | . . . Machines Disabled . | . . . Actions | -11 -10 -10 --------- Run | Scr Mat Min Total 1089 | 66 959 64 Wait 41 | . 41 . Move 904 | 42 811 51 Hop . | . . . Pick Up 19 | 1 17 1 Fast Attach 9 | 7 2 . Attach 5 | 1 1 3 Detach 4 | 1 3 . Swap 10 | . 8 2 Drop 5 | . 4 1 Fire 91 | 14 72 5 Melee . | . . . Ram . | . . . Kick . | . . . Crush 1 | . . 1 Escape Stasis . | . . . Rewire . | . . . Trap . | . . . Miscellaneous . | . . . Route ------- -11/Scrapyard -10/Materials (discovered 4 exits: [*Mat x3] / *Min) -10/Mines History --------- Turn | Location | Event 11 | -11/Scrapyard | Discovered new exit (range 15) 114 | -11/Scrapyard | Entered Materials 323 | -10/Materials | Build established: Mutant 645 | -10/Materials | Discovered new exit (range 5) 717 | -10/Materials | Discovered new exit (range 7) 808 | -10/Materials | Discovered new exit (range 10) 1362 | -10/Materials | Identified exit to Mines 1718 | -10/Materials | Discovered new exit (range 16) 2143 | -10/Materials | Entered Mines 2143 | -10/Mines | Accompanied by 1 ally 2177 | -10/Mines | A weapon hastily lodged in a ceiling crevice suddenly fell to the ground 2219 | -10/Mines | Assembled infested the area 2224 | -10/Mines | Assisted by a Guerilla fighting off Assembled 2258 | -10/Mines | Received a Rocket Launcher from a helpful Derelict 2270 | -10/Mines | Core integrity fell below 50% 2282 | -10/Mines | Core integrity fell below 20% 2289 | -10/Mines | Destroyed by D-53 Grenadier with Mini Grenade Launcher Last Messages --------------- 02268_ The unstable cave ceiling collapses. 02270_ K-01 Serf collects debris. 02272_ The unstable cave ceiling collapses. 02272_ Lgt. Ion Engine destroyed. 02273_ The unstable cave ceiling collapses. 02273_ Lgt. Treads destroyed. 02274_ The unstable cave ceiling collapses. 02274_ K-01 Serf collects debris. 02275_ The unstable cave ceiling collapses. 02275_ Assault Rifle destroyed. 02275_ Grenade Launcher destroyed. 02276_ The unstable cave ceiling collapses. 02277_ D-53 Grenadier destroyed. 02279_ The unstable cave ceiling collapses. 02281_ Lgt. Treads destroyed. 02282_ The unstable cave ceiling collapses. 02282_ K-01 Serf collects debris. 02283_ The unstable cave ceiling collapses. 02286_ K-01 Serf collects debris. 02287_ Lgt. Treads destroyed. Map ----- +----------------------------------------------------+ | ?????????????????????????????????????????????????? | | ?????????????????????????????????????????????????? | | ?????????????????????????????????????????????????? | | ?????????????????????????????????????????????????? | | ?????????????????????????????????????????????????? | | ?????????????????????????????????????????????????? | | ?????????????????????????????????????????????????? | | ?????????????????????????????????????????????????? | | ?????????????????????????????????????????????????? | | ?????????????????????????????????????????????????? | | ?????????????????????????????????????????????????? | | ?????????????????????????????????????????????????? | | ?????????????????????????????????????????????????? | | ?????????????????????????????????????????????????? | | ????????????????????????????##???????????????????? | | ???????????????????????????? ####????????????????? | | ???????????????????????????? ###????????????????? | | ????????????????####??????? ###???????????????? | | ???????????????#######????? #???????????????? | | ???????????????### ####?### ##???????????????? | | ???????????????## ###### #???????????????? | | ???????????????## # ### #???????????? | | ???????????????### ????????????? | | ????????????????## # *???????????? | | ?????? # ### # ??????????? | | ?????? @d * ????????? | | ?????? # %= ! ????????? | | ??????? ##### * ???????????? | | ???????????##### #?????????? | | ???????????### k ###### ##?????????? | | ???????????## # # % #####?????##??????????? | | ???????????## #######* ##?????????????????? | | ???????????## ####### # ##????????#####????? | | ???????????### ###### ##### ##???????#######???? | | ???????????#######?## #### ##???????## ###???? | | ????????????#####??### ### ##???????# ##???? | | ????????????????????### ### ##?????## ##???? | | ????????????????????### ] ### ##??##### ####### | | ????????????????????### #### ##?##### ######## | | ????????????????????## #### ###### ## | | ????????????????????## #### ##### ## | | ????????????????????## ### ##???? ## | | ????????????????????## ##??????? | | ????????????????????## #### ###??????? | | ????????????????????## ##### ## ###??????? | | ????????????????????## ##### ##### ##???????? | | ????????????????????## ###?## ##### ####???????? | | ????????????????????### ####?## ##??? ####???????? | | ????????????????????###### ?? ##??? ##?????????? | | ?????????????????????####????? #??? ##?????????? | +----------------------------------------------------+ Best States ------------- Heat Dissipation 25 Energy Generation 10 Energy Capacity 125 Matter Stores 300 Matter Capacity 300 Sight Range 16 Terrain Scan Range 16 Terrain Scan Density 10 Core Shielding 20 Evasion (%) 40 Recoil Reduction 2 Item Schematics ----------------- None Robot Schematics ------------------ None Fabricated ------------ Nothing Alien Tech Used ----------------- None Achievements -------------- None Challenges ------------ None Game ------ Seed SupersonicVariableSystem Manual? 0 Play Time 00:13:36 Cumulative 473.1 hours Start 2022.04.24 @ 19:45:51 End 2022.04.24 @ 19:57:47 Sessions 1 Manual Loads 0 Difficulty Rogue Special Mode None Game No. 389 Rogue 389 Adventurer 0 Explorer 0 Win Type - Total 3 Types 2/0/0/1/0/0/0/0/0 Lore% 68 Gallery% 77 Achievement% 66 Wizard Run 0 Options --------- ASCII 0 Keyboard 1 Movement Numpad Keybinds 0 Fullscreen 1 Font 12/Terminus Map View 83x54 Tactical HUD 1 Map Filters NONE Filters NONE Steam 1 RUN: d4c31d9b-9d68-4192-8a83-31cd6a56192f